{"text_format":"3","workbook":"xlsx","n_sheets":1,"sheets":["Foglio1"],"read":"whole","date_system":"1900"}

{"sheet":"Foglio1","index":0,"n_rows":200,"n_cols":22,"rows_kept":200}
["Name","Nation","Total","Colonna1","WC04","EC05","EC08","WC10","QT11","EC12","WC14","EC16","FS17","WC18","QT19","ES20","BC22","WC22","QT23","IJ24","EC24","DNC25"]
["Anders Berenth","Denmark",{"$f":"SUM(Tabella1[[#This Row],[Colonna1]:[DNC25]])","v":158},null,2,9,10,25,null,15,13,19,null,13,{"$nulls":3},32,null,null,10,10]
["Björn Sarrazijn","Belgium",{"$f":"SUM(Tabella1[[#This Row],[Colonna1]:[DNC25]])","v":131},{"$nulls":3},27,44,null,22,20,18]
["Jan Schaublin","Switzerland",{"$f":"SUM(Tabella1[[#This Row],[Colonna1]:[DNC25]])","v":129},{"$nulls":10},18,null,10,22,21,null,17,41]
["Dennis Van Den Boomen","the Netherlands",{"$f":"SUM(Tabella1[[#This Row],[Colonna1]:[DNC25]])","v":113},null,9,7,6,4,null,5,11,17,null,20,null,null,13,15,null,null,6]
["Berrie Hommel","the Netherlands",{"$f":"SUM(Tabella1[[#This Row],[Colonna1]:[DNC25]])","v":104},null,9,23,26,29,null,17]
["Juha Palonen","Finland",{"$f":"SUM(Tabella1[[#This Row],[Colonna1]:[DNC25]])","v":102},{"$nulls":3},20,12,null,11,18,13,13,null,null,2,null,13]
["Jules Van Der Heijden","the Netherlands",{"$f":"SUM(Tabella1[[#This Row],[Colonna1]:[DNC25]])","v":95},{"$nulls":7},14,7,null,19,null,null,4,15,null,null,29,7]
["Paul Emmering","Germany",{"$f":"SUM(Tabella1[[#This Row],[Colonna1]:[DNC25]])","v":92},null,11,14,13,22,null,16,16]
["Nasim Afrah","Germany",{"$f":"SUM(Tabella1[[#This Row],[Colonna1]:[DNC25]])","v":89},{"$nulls":7},2,15,12,9,null,12,{"$nulls":4},39]
["Dominik Zenhäusern","Switzerland",{"$f":"SUM(Tabella1[[#This Row],[Colonna1]:[DNC25]])","v":73},{"$nulls":8},1,11,17,null,6,4,7,null,8,10,9]
["Tim Heere","the Netherlands",{"$f":"SUM(Tabella1[[#This Row],[Colonna1]:[DNC25]])","v":69},{"$nulls":6},8,{"$nulls":6},17,16,null,null,12,16]
["Kamal Tahtahi","the Netherlands",{"$f":"SUM(Tabella1[[#This Row],[Colonna1]:[DNC25]])","v":65},null,9,23,5,2,null,6,13,5,null,2]
["An Vanheusden","Belgium",{"$f":"SUM(Tabella1[[#This Row],[Colonna1]:[DNC25]])","v":62},null,1,9,13,16,null,9,11,3]
["Kasper Vuorinen","Finland",{"$f":"SUM(Tabella1[[#This Row],[Colonna1]:[DNC25]])","v":59},{"$nulls":12},9,null,17,null,6,22,5]
["Rodi Feller","the Netherlands",{"$f":"SUM(Tabella1[[#This Row],[Colonna1]:[DNC25]])","v":56},{"$nulls":8},8,null,4,null,null,14,19,{"$nulls":3},11]
["Stefan Muller","Switzerland",{"$f":"SUM(Tabella1[[#This Row],[Colonna1]:[DNC25]])","v":56},{"$nulls":3},2,4,null,7,19,24]
["Tiziano Fattore","Italy",{"$f":"SUM(Tabella1[[#This Row],[Colonna1]:[DNC25]])","v":53},null,null,13,16,16,null,7,1]
["David Huber","Germany",{"$f":"SUM(Tabella1[[#This Row],[Colonna1]:[DNC25]])","v":51},{"$nulls":9},2,9,null,6,5,18,null,null,11]
["Alexander Pedersen","Denmark",{"$f":"SUM(Tabella1[[#This Row],[Colonna1]:[DNC25]])","v":49},{"$nulls":9},11,7,{"$nulls":3},24,null,null,7]
["Mattia Ramina","Italy",{"$f":"SUM(Tabella1[[#This Row],[Colonna1]:[DNC25]])","v":47},{"$nulls":13},6,11,null,9,10,11]
["Lucas Schell","the Netherlands",{"$f":"SUM(Tabella1[[#This Row],[Colonna1]:[DNC25]])","v":43},{"$nulls":13},19,13,null,null,10,1]
["Claudio Comino","Italy",{"$f":"SUM(Tabella1[[#This Row],[Colonna1]:[DNC25]])","v":43},{"$nulls":8},4,5,9,null,4,10,11]
["Asier Sanchez Alvarez","Spain",{"$f":"SUM(Tabella1[[#This Row],[Colonna1]:[DNC25]])","v":43},{"$nulls":8},12,null,null,17,null,null,10,null,null,4]
["Kaan Sisik","Germany",{"$f":"SUM(Tabella1[[#This Row],[Colonna1]:[DNC25]])","v":42},{"$nulls":8},8,10,10,null,4,6,4]
["Marcel Van Den Muysenberg","the Netherlands",{"$f":"SUM(Tabella1[[#This Row],[Colonna1]:[DNC25]])","v":42},null,3,16,6,12,null,5]
["Nikolaj Richelsen","Denmark",{"$f":"SUM(Tabella1[[#This Row],[Colonna1]:[DNC25]])","v":41},{"$nulls":3},2,6,null,2,8,null,6,3,{"$nulls":3},4,null,null,6,4]
["Daan Van Nerum","Belgium",{"$f":"SUM(Tabella1[[#This Row],[Colonna1]:[DNC25]])","v":40},{"$nulls":14},5,12,null,13,10]
["Manuel Melder","Switzerland",{"$f":"SUM(Tabella1[[#This Row],[Colonna1]:[DNC25]])","v":40},{"$nulls":10},12,null,null,12,4,null,4,4,4]
["Fuxin Ruan","Belgium",{"$f":"SUM(Tabella1[[#This Row],[Colonna1]:[DNC25]])","v":39},{"$nulls":7},1,null,null,10,{"$nulls":4},18,null,10]
["Nelson Braillard","Switzerland",{"$f":"SUM(Tabella1[[#This Row],[Colonna1]:[DNC25]])","v":35},{"$nulls":4},1,null,3,4,1,6,6,{"$nulls":3},6,null,3,1,4]
["Patrik Granzotto","Italy",{"$f":"SUM(Tabella1[[#This Row],[Colonna1]:[DNC25]])","v":34},{"$nulls":12},2,4,9,null,6,8,5]
["Stanislav Cimpa","Czech Republic",{"$f":"SUM(Tabella1[[#This Row],[Colonna1]:[DNC25]])","v":34},{"$nulls":11},23,null,4,null,7]
["Claudio Carelli","Italy",{"$f":"SUM(Tabella1[[#This Row],[Colonna1]:[DNC25]])","v":32},null,9,16,3,4]
["Ella-Riikka Isometsä","Finland",{"$f":"SUM(Tabella1[[#This Row],[Colonna1]:[DNC25]])","v":31},{"$nulls":4},5,null,6,2,6,4,{"$nulls":4},3,null,2,2,1]
["Emilio Lopez Barranco","the Netherlands",{"$f":"SUM(Tabella1[[#This Row],[Colonna1]:[DNC25]])","v":31},null,8,12,11]
["Michael Przyklad","Belgium",{"$f":"SUM(Tabella1[[#This Row],[Colonna1]:[DNC25]])","v":30},null,5,25]
["Jorma Lehmus","Finland",{"$f":"SUM(Tabella1[[#This Row],[Colonna1]:[DNC25]])","v":30},null,10,7,null,6,null,3,null,4]
["Ion Jignea","Italy",{"$f":"SUM(Tabella1[[#This Row],[Colonna1]:[DNC25]])","v":27},{"$nulls":7},3,4,2,3,null,2,2,2,null,2,5,2]
["Khaleq Dad Hassani","Switzerland",{"$f":"SUM(Tabella1[[#This Row],[Colonna1]:[DNC25]])","v":26},{"$nulls":17},7,19]
["Leonardo Catania","Italy",{"$f":"SUM(Tabella1[[#This Row],[Colonna1]:[DNC25]])","v":26},{"$nulls":16},8,11,7]
["Diego Masoli","Italy",{"$f":"SUM(Tabella1[[#This Row],[Colonna1]:[DNC25]])","v":26},{"$nulls":12},4,8,13,null,1]
["Tim Treidy","Germany",{"$f":"SUM(Tabella1[[#This Row],[Colonna1]:[DNC25]])","v":25},{"$nulls":9},3,3,null,2,9,8]
["Marjan Meznar","Slovenia",{"$f":"SUM(Tabella1[[#This Row],[Colonna1]:[DNC25]])","v":25},{"$nulls":5},13,5,{"$nulls":8},7]
["Emanuel Farcasel","Italy",{"$f":"SUM(Tabella1[[#This Row],[Colonna1]:[DNC25]])","v":24},{"$nulls":8},5,10,9]
["Mattia Muratore","Italy",{"$f":"SUM(Tabella1[[#This Row],[Colonna1]:[DNC25]])","v":24},{"$nulls":6},6,8,5,1,4]
["Veronica Conceicao","Switzerland",{"$f":"SUM(Tabella1[[#This Row],[Colonna1]:[DNC25]])","v":23},{"$nulls":7},2,null,2,7,null,3,3,2,null,1,3]
["Jesse Mursu","Finland",{"$f":"SUM(Tabella1[[#This Row],[Colonna1]:[DNC25]])","v":22},{"$nulls":9},2,null,null,5,null,11,null,1,3]
["Saskia Hommel-Beun","the Netherlands",{"$f":"SUM(Tabella1[[#This Row],[Colonna1]:[DNC25]])","v":22},null,null,9,8,3,null,2]
["Manuela Rahlf","Germany",{"$f":"SUM(Tabella1[[#This Row],[Colonna1]:[DNC25]])","v":21},null,4,11,6]
["April Ranshuysen","the Netherlands",{"$f":"SUM(Tabella1[[#This Row],[Colonna1]:[DNC25]])","v":21},null,11,{"$nulls":4},7,3]
["Michael Foxall","Australia",{"$f":"SUM(Tabella1[[#This Row],[Colonna1]:[DNC25]])","v":20},null,2,null,null,10,null,null,8]
["Samuel Ojala","Finland",{"$f":"SUM(Tabella1[[#This Row],[Colonna1]:[DNC25]])","v":20},{"$nulls":9},1,null,null,5,null,10,null,null,4]
["Danni Mogensen","Denmark",{"$f":"SUM(Tabella1[[#This Row],[Colonna1]:[DNC25]])","v":18},null,3,4,5,{"$nulls":3},1,null,null,2,{"$nulls":6},2,1]
["Petri Matikainen","Finland",{"$f":"SUM(Tabella1[[#This Row],[Colonna1]:[DNC25]])","v":18},null,1,6,1,2,null,null,3,1,1,null,null,1,null,1,null,1]
["Görkem Oguz","Germany",{"$f":"SUM(Tabella1[[#This Row],[Colonna1]:[DNC25]])","v":18},null,3,2,1,7,null,5]
["Roger Badia","Spain",{"$f":"SUM(Tabella1[[#This Row],[Colonna1]:[DNC25]])","v":18},{"$nulls":14},6,null,null,12]
["Lien Anseele","Belgium",{"$f":"SUM(Tabella1[[#This Row],[Colonna1]:[DNC25]])","v":17},{"$nulls":15},14,null,3]
["Andrea Ronsval","Italy",{"$f":"SUM(Tabella1[[#This Row],[Colonna1]:[DNC25]])","v":17},{"$nulls":3},1,4,null,9,3]
["Lars Reniers","Belgium",{"$f":"SUM(Tabella1[[#This Row],[Colonna1]:[DNC25]])","v":16},null,11,5]
["Marco Brusati","Italy",{"$f":"SUM(Tabella1[[#This Row],[Colonna1]:[DNC25]])","v":16},null,3,10,3]
["Maarten Claes","Belgium",{"$f":"SUM(Tabella1[[#This Row],[Colonna1]:[DNC25]])","v":15},{"$nulls":4},2,{"$nulls":3},3,null,9,{"$nulls":4},1]
["Silvio Grubert","Germany",{"$f":"SUM(Tabella1[[#This Row],[Colonna1]:[DNC25]])","v":15},{"$nulls":6},7,8]
["Branka Petrak","Slovenia",{"$f":"SUM(Tabella1[[#This Row],[Colonna1]:[DNC25]])","v":15},{"$nulls":5},6,3,{"$nulls":4},4,{"$nulls":3},2]
["Antonio Rodriguez","Spain",{"$f":"SUM(Tabella1[[#This Row],[Colonna1]:[DNC25]])","v":14},{"$nulls":8},2,null,null,4,null,null,5,null,null,3]
["Stefano Occhialini","Italy",{"$f":"SUM(Tabella1[[#This Row],[Colonna1]:[DNC25]])","v":13},null,6,7]
["Valerie Schell","the Netherlands",{"$f":"SUM(Tabella1[[#This Row],[Colonna1]:[DNC25]])","v":12},{"$nulls":17},4,8]
["Antti Ämmänkoski","Finland",{"$f":"SUM(Tabella1[[#This Row],[Colonna1]:[DNC25]])","v":12},null,4,6,{"$nulls":3},2]
["Ramazan Sahin","Germany",{"$f":"SUM(Tabella1[[#This Row],[Colonna1]:[DNC25]])","v":12},null,null,2,5,3,null,null,2]
["Roland Utz","Germany",{"$f":"SUM(Tabella1[[#This Row],[Colonna1]:[DNC25]])","v":12},null,4,5,null,3]
["Tommaso Liccardo","Italy",{"$f":"SUM(Tabella1[[#This Row],[Colonna1]:[DNC25]])","v":12},{"$nulls":4},4,null,7,1]
["Stephen Webb","Australia",{"$f":"SUM(Tabella1[[#This Row],[Colonna1]:[DNC25]])","v":10},null,7,{"$nulls":12},3]
["Thomas Puska","Finland",{"$f":"SUM(Tabella1[[#This Row],[Colonna1]:[DNC25]])","v":10},null,null,10]
["Andrea Felicani","Italy",{"$f":"SUM(Tabella1[[#This Row],[Colonna1]:[DNC25]])","v":10},{"$nulls":8},2,2,6]
["Yasin Kahya","Belgium",{"$f":"SUM(Tabella1[[#This Row],[Colonna1]:[DNC25]])","v":9},{"$nulls":10},4,{"$nulls":3},4,1]
["Stefan Utz","Germany",{"$f":"SUM(Tabella1[[#This Row],[Colonna1]:[DNC25]])","v":9},null,1,4,{"$nulls":4},1,3]
["Claudio Salvo","Italy",{"$f":"SUM(Tabella1[[#This Row],[Colonna1]:[DNC25]])","v":9},{"$nulls":4},1,null,2,4,null,null,2]
["Bryan Vantornhout","Belgium",{"$f":"SUM(Tabella1[[#This Row],[Colonna1]:[DNC25]])","v":8},null,null,8]
["Nasib Ogho","Canada",{"$f":"SUM(Tabella1[[#This Row],[Colonna1]:[DNC25]])","v":8},{"$nulls":10},3,{"$nulls":3},5]
["David Drahoninsky","Czech Republic",{"$f":"SUM(Tabella1[[#This Row],[Colonna1]:[DNC25]])","v":8},{"$nulls":3},8]
["Jan Haslar","Czech Republic",{"$f":"SUM(Tabella1[[#This Row],[Colonna1]:[DNC25]])","v":8},{"$nulls":11},1,null,2,null,5]
["Jakob Dahl","Denmark",{"$f":"SUM(Tabella1[[#This Row],[Colonna1]:[DNC25]])","v":8},{"$nulls":6},2,null,2,null,4]
["Eva-Maria Berndl","Germany",{"$f":"SUM(Tabella1[[#This Row],[Colonna1]:[DNC25]])","v":8},{"$nulls":6},1,4,3]
["Davide Sciuva","Italy",{"$f":"SUM(Tabella1[[#This Row],[Colonna1]:[DNC25]])","v":8},{"$nulls":13},1,7]
["Michele Fierravanti","Italy",{"$f":"SUM(Tabella1[[#This Row],[Colonna1]:[DNC25]])","v":8},{"$nulls":13},1,7]
["Ramin Raunak","Canada",{"$f":"SUM(Tabella1[[#This Row],[Colonna1]:[DNC25]])","v":7},{"$nulls":10},2,{"$nulls":3},5]
["Jan Horak","Czech Republic",{"$f":"SUM(Tabella1[[#This Row],[Colonna1]:[DNC25]])","v":7},null,null,5,2]
["Kai Saarinen","Finland",{"$f":"SUM(Tabella1[[#This Row],[Colonna1]:[DNC25]])","v":7},null,2,1,2,2]
["Gianluca Callà","Italy",{"$f":"SUM(Tabella1[[#This Row],[Colonna1]:[DNC25]])","v":7},null,null,7]
["Jeremy Doyle","Australia",{"$f":"SUM(Tabella1[[#This Row],[Colonna1]:[DNC25]])","v":6},null,6]
["Luke David","Australia",{"$f":"SUM(Tabella1[[#This Row],[Colonna1]:[DNC25]])","v":6},{"$nulls":10},6]
["Leena Ikola","Finland",{"$f":"SUM(Tabella1[[#This Row],[Colonna1]:[DNC25]])","v":6},null,null,5,1]
["Andreas Vogt","Germany",{"$f":"SUM(Tabella1[[#This Row],[Colonna1]:[DNC25]])","v":6},null,4,1,{"$nulls":3},1]
["Aylin Yilmaz","Switzerland",{"$f":"SUM(Tabella1[[#This Row],[Colonna1]:[DNC25]])","v":6},{"$nulls":4},6]
["Ilse Van Kemenade","the Netherlands",{"$f":"SUM(Tabella1[[#This Row],[Colonna1]:[DNC25]])","v":6},{"$nulls":7},4,{"$nulls":5},1,1]
["Stijn Van Zon","the Netherlands",{"$f":"SUM(Tabella1[[#This Row],[Colonna1]:[DNC25]])","v":5},{"$nulls":13},3,1,{"$nulls":3},1]
["Denis Goll","Czech Republic",{"$f":"SUM(Tabella1[[#This Row],[Colonna1]:[DNC25]])","v":5},{"$nulls":11},5]
["Jan Vanek","Czech Republic",{"$f":"SUM(Tabella1[[#This Row],[Colonna1]:[DNC25]])","v":5},null,null,3,2]
["David Bauer","Germany",{"$f":"SUM(Tabella1[[#This Row],[Colonna1]:[DNC25]])","v":5},{"$nulls":7},1,{"$nulls":4},1,1,{"$nulls":3},2]
["Matteo Bortolini","Italy",{"$f":"SUM(Tabella1[[#This Row],[Colonna1]:[DNC25]])","v":5},{"$nulls":3},2,3]
["Tilen Ribnikar","Slovenia",{"$f":"SUM(Tabella1[[#This Row],[Colonna1]:[DNC25]])","v":5},{"$nulls":5},5]
["Noe Spirig","Switzerland",{"$f":"SUM(Tabella1[[#This Row],[Colonna1]:[DNC25]])","v":5},{"$nulls":6},1,null,null,1,2,null,null,1]
["Emmanuele D'ovidio","Switzerland",{"$f":"SUM(Tabella1[[#This Row],[Colonna1]:[DNC25]])","v":4},{"$nulls":18},4]
["Teun Cremers","the Netherlands",{"$f":"SUM(Tabella1[[#This Row],[Colonna1]:[DNC25]])","v":4},{"$nulls":18},4]
["Walter Ostergard","Finland",{"$f":"SUM(Tabella1[[#This Row],[Colonna1]:[DNC25]])","v":4},{"$nulls":17},2,2]
["Sven Pauwels","Belgium",{"$f":"SUM(Tabella1[[#This Row],[Colonna1]:[DNC25]])","v":4},{"$nulls":10},4]
["Katrine Jensen","Denmark",{"$f":"SUM(Tabella1[[#This Row],[Colonna1]:[DNC25]])","v":4},{"$nulls":14},4]
["Kristoffer Dahl Hansen","Denmark",{"$f":"SUM(Tabella1[[#This Row],[Colonna1]:[DNC25]])","v":4},{"$nulls":4},2,{"$nulls":12},2]
["Lucas Busel","Germany",{"$f":"SUM(Tabella1[[#This Row],[Colonna1]:[DNC25]])","v":4},{"$nulls":14},4]
["Jasmin Rechsteiner","Switzerland",{"$f":"SUM(Tabella1[[#This Row],[Colonna1]:[DNC25]])","v":4},{"$nulls":6},4]
["Cyrill Teeuwen","the Netherlands",{"$f":"SUM(Tabella1[[#This Row],[Colonna1]:[DNC25]])","v":4},{"$nulls":8},1,null,2,null,null,1]
["Pavel Florian","Czech Republic",{"$f":"SUM(Tabella1[[#This Row],[Colonna1]:[DNC25]])","v":3},{"$nulls":15},3]
["Harri Hakala","Finland",{"$f":"SUM(Tabella1[[#This Row],[Colonna1]:[DNC25]])","v":3},null,1,2]
["Miika Riikonen","Finland",{"$f":"SUM(Tabella1[[#This Row],[Colonna1]:[DNC25]])","v":3},null,3]
["Roda Mohamed","Finland",{"$f":"SUM(Tabella1[[#This Row],[Colonna1]:[DNC25]])","v":3},{"$nulls":3},3]
["Dietmar Lowen","Germany",{"$f":"SUM(Tabella1[[#This Row],[Colonna1]:[DNC25]])","v":3},{"$nulls":13},2,{"$nulls":3},1]
["Johanna Ruhrbuch","Germany",{"$f":"SUM(Tabella1[[#This Row],[Colonna1]:[DNC25]])","v":3},{"$nulls":13},3]
["Luca Vanoli","Italy",{"$f":"SUM(Tabella1[[#This Row],[Colonna1]:[DNC25]])","v":3},{"$nulls":7},3]
["Sara Granada Aguilella","Spain",{"$f":"SUM(Tabella1[[#This Row],[Colonna1]:[DNC25]])","v":3},{"$nulls":11},2,null,null,1]
["Dave Inhelder","Switzerland",{"$f":"SUM(Tabella1[[#This Row],[Colonna1]:[DNC25]])","v":3},{"$nulls":12},2,null,1]
["Roman Scherrer","Switzerland",{"$f":"SUM(Tabella1[[#This Row],[Colonna1]:[DNC25]])","v":3},{"$nulls":3},3]
["Benjamin Koning","the Netherlands",{"$f":"SUM(Tabella1[[#This Row],[Colonna1]:[DNC25]])","v":3},null,null,3]
["Minas Minasyan / Aybars","the Netherlands",{"$f":"SUM(Tabella1[[#This Row],[Colonna1]:[DNC25]])","v":3},null,1,{"$nulls":5},1,null,null,1]
["Wesley Ferwerda","the Netherlands",{"$f":"SUM(Tabella1[[#This Row],[Colonna1]:[DNC25]])","v":3},{"$nulls":4},3]
["Daphne de Meijer","the Netherlands",{"$f":"SUM(Tabella1[[#This Row],[Colonna1]:[DNC25]])","v":2},{"$nulls":17},1,1]
["Andrew Waite","Australia",{"$f":"SUM(Tabella1[[#This Row],[Colonna1]:[DNC25]])","v":2},{"$nulls":4},2]
["Joshua Merkas","Australia",{"$f":"SUM(Tabella1[[#This Row],[Colonna1]:[DNC25]])","v":2},{"$nulls":4},2]
["Richard Dolovski","Australia",{"$f":"SUM(Tabella1[[#This Row],[Colonna1]:[DNC25]])","v":2},null,2]
["Koenraad Lenoir","Belgium",{"$f":"SUM(Tabella1[[#This Row],[Colonna1]:[DNC25]])","v":2},{"$nulls":4},2]
["Tim Smeers","Belgium",{"$f":"SUM(Tabella1[[#This Row],[Colonna1]:[DNC25]])","v":2},null,1,1]
["Lukas Zuzanek","Czech Republic",{"$f":"SUM(Tabella1[[#This Row],[Colonna1]:[DNC25]])","v":2},{"$nulls":15},2]
["Marketa Novotna","Czech Republic",{"$f":"SUM(Tabella1[[#This Row],[Colonna1]:[DNC25]])","v":2},{"$nulls":11},2]
["Tomas Suchy","Czech Republic",{"$f":"SUM(Tabella1[[#This Row],[Colonna1]:[DNC25]])","v":2},{"$nulls":3},2]
["Vaclav Uher","Czech Republic",{"$f":"SUM(Tabella1[[#This Row],[Colonna1]:[DNC25]])","v":2},{"$nulls":3},2]
["Rasmus Broberg Jensen","Denmark",{"$f":"SUM(Tabella1[[#This Row],[Colonna1]:[DNC25]])","v":2},null,null,1,null,1]
["Rasmus Yder","Denmark",{"$f":"SUM(Tabella1[[#This Row],[Colonna1]:[DNC25]])","v":2},{"$nulls":4},2]
["Markku Jansson","Finland",{"$f":"SUM(Tabella1[[#This Row],[Colonna1]:[DNC25]])","v":2},{"$nulls":6},1,null,1]
["Pyry-Matti Niemelä","Finland",{"$f":"SUM(Tabella1[[#This Row],[Colonna1]:[DNC25]])","v":2},{"$nulls":3},2]
["Saila Luumi","Finland",{"$f":"SUM(Tabella1[[#This Row],[Colonna1]:[DNC25]])","v":2},{"$nulls":4},1,null,1]
["Daniel Bauer","Germany",{"$f":"SUM(Tabella1[[#This Row],[Colonna1]:[DNC25]])","v":2},{"$nulls":14},2]
["Giovanni D'Aiuto","Italy",{"$f":"SUM(Tabella1[[#This Row],[Colonna1]:[DNC25]])","v":2},{"$nulls":6},2]
["Marco Ferrazza","Italy",{"$f":"SUM(Tabella1[[#This Row],[Colonna1]:[DNC25]])","v":2},{"$nulls":6},2]
["Matjaz Bartol","Slovenia",{"$f":"SUM(Tabella1[[#This Row],[Colonna1]:[DNC25]])","v":2},{"$nulls":11},2]
["Miguel Lechado Salazar","Spain",{"$f":"SUM(Tabella1[[#This Row],[Colonna1]:[DNC25]])","v":2},{"$nulls":5},2]
["Raùl Hèrnandez-Hèrnandez","Spain",{"$f":"SUM(Tabella1[[#This Row],[Colonna1]:[DNC25]])","v":2},{"$nulls":5},2]
["Daniel Rolli","Switzerland",{"$f":"SUM(Tabella1[[#This Row],[Colonna1]:[DNC25]])","v":2},{"$nulls":8},1,null,1]
["Max Lambregts","the Netherlands",{"$f":"SUM(Tabella1[[#This Row],[Colonna1]:[DNC25]])","v":2},{"$nulls":8},2]
["Richard Goudswaard","the Netherlands",{"$f":"SUM(Tabella1[[#This Row],[Colonna1]:[DNC25]])","v":2},{"$nulls":14},2]
["Maxime Selis","Belgium",{"$f":"SUM(Tabella1[[#This Row],[Colonna1]:[DNC25]])","v":1},{"$nulls":18},1]
["Rasmus Tadese Larsen","Denmark",{"$f":"SUM(Tabella1[[#This Row],[Colonna1]:[DNC25]])","v":1},{"$nulls":18},1]
["Eero Pökki","Finland",{"$f":"SUM(Tabella1[[#This Row],[Colonna1]:[DNC25]])","v":1},{"$nulls":18},1]
["Chris Dolovski","Australia",{"$f":"SUM(Tabella1[[#This Row],[Colonna1]:[DNC25]])","v":1},null,1]
["Jack O'Keeffe","Australia",{"$f":"SUM(Tabella1[[#This Row],[Colonna1]:[DNC25]])","v":1},{"$nulls":14},1]
["Kieran Watts","Australia",{"$f":"SUM(Tabella1[[#This Row],[Colonna1]:[DNC25]])","v":1},{"$nulls":14},1]
["Shaun Mott","Australia",{"$f":"SUM(Tabella1[[#This Row],[Colonna1]:[DNC25]])","v":1},{"$nulls":10},1]
["Arno Van Praet","Belgium",{"$f":"SUM(Tabella1[[#This Row],[Colonna1]:[DNC25]])","v":1},{"$nulls":10},1]
["Dimitri Levevre","Belgium",{"$f":"SUM(Tabella1[[#This Row],[Colonna1]:[DNC25]])","v":1},{"$nulls":3},1]
["Jerryt De Moor","Belgium",{"$f":"SUM(Tabella1[[#This Row],[Colonna1]:[DNC25]])","v":1},{"$nulls":10},1]
["Jonathan Matthys","Belgium",{"$f":"SUM(Tabella1[[#This Row],[Colonna1]:[DNC25]])","v":1},{"$nulls":15},1]
["Kenny Verbraekel","Belgium",{"$f":"SUM(Tabella1[[#This Row],[Colonna1]:[DNC25]])","v":1},null,null,1]
["Maxime Decrock","Belgium",{"$f":"SUM(Tabella1[[#This Row],[Colonna1]:[DNC25]])","v":1},{"$nulls":14},1]
["Jesper Nelleman","Denmark",{"$f":"SUM(Tabella1[[#This Row],[Colonna1]:[DNC25]])","v":1},{"$nulls":6},1]
["Atso Ahonen","Finland",{"$f":"SUM(Tabella1[[#This Row],[Colonna1]:[DNC25]])","v":1},null,null,1]
["Jasmi Ahonen","Finland",{"$f":"SUM(Tabella1[[#This Row],[Colonna1]:[DNC25]])","v":1},{"$nulls":14},1]
["Maaret Turunen","Finland",{"$f":"SUM(Tabella1[[#This Row],[Colonna1]:[DNC25]])","v":1},{"$nulls":6},1]
["Miro Reijonen","Finland",{"$f":"SUM(Tabella1[[#This Row],[Colonna1]:[DNC25]])","v":1},{"$nulls":4},1]
["Henry Acquah","Germany",{"$f":"SUM(Tabella1[[#This Row],[Colonna1]:[DNC25]])","v":1},null,1]
["Lukas Kankanam Pathirage","Germany",{"$f":"SUM(Tabella1[[#This Row],[Colonna1]:[DNC25]])","v":1},{"$nulls":12},1]
["Sandra Steiner","Germany",{"$f":"SUM(Tabella1[[#This Row],[Colonna1]:[DNC25]])","v":1},{"$nulls":8},1]
["Timo Kupke","Germany",{"$f":"SUM(Tabella1[[#This Row],[Colonna1]:[DNC25]])","v":1},{"$nulls":6},1]
["Andrea Venuto","Italy",{"$f":"SUM(Tabella1[[#This Row],[Colonna1]:[DNC25]])","v":1},null,null,1]
["Daniele Lazzari","Italy",{"$f":"SUM(Tabella1[[#This Row],[Colonna1]:[DNC25]])","v":1},{"$nulls":7},1]
["Giuseppe Sanfilippo","Italy",{"$f":"SUM(Tabella1[[#This Row],[Colonna1]:[DNC25]])","v":1},{"$nulls":6},1]
["Ales Zucko","Slovenia",{"$f":"SUM(Tabella1[[#This Row],[Colonna1]:[DNC25]])","v":1},{"$nulls":5},1]
["Goran Habjanic","Slovenia",{"$f":"SUM(Tabella1[[#This Row],[Colonna1]:[DNC25]])","v":1},{"$nulls":15},1]
["Gregor Jeric","Slovenia",{"$f":"SUM(Tabella1[[#This Row],[Colonna1]:[DNC25]])","v":1},{"$nulls":11},1]
["Alejandro Diaz Garcia","Spain",{"$f":"SUM(Tabella1[[#This Row],[Colonna1]:[DNC25]])","v":1},{"$nulls":11},1]
["Arnau Camps","Spain",{"$f":"SUM(Tabella1[[#This Row],[Colonna1]:[DNC25]])","v":1},{"$nulls":14},1]
["Jordi Valle","Spain",{"$f":"SUM(Tabella1[[#This Row],[Colonna1]:[DNC25]])","v":1},{"$nulls":14},1]
["Maud Reusken","the Netherlands",{"$f":"SUM(Tabella1[[#This Row],[Colonna1]:[DNC25]])","v":1},null,null,1]
[null,null,{"$f":"SUM(Tabella1[[#This Row],[Colonna1]:[DNC25]])","v":0}]
[null,null,{"$f":"SUM(Tabella1[[#This Row],[Colonna1]:[DNC25]])","v":0}]
[null,null,{"$f":"SUM(Tabella1[[#This Row],[Colonna1]:[DNC25]])","v":0}]
[null,null,{"$f":"SUM(Tabella1[[#This Row],[Colonna1]:[DNC25]])","v":0}]
[null,null,{"$f":"SUM(Tabella1[[#This Row],[Colonna1]:[DNC25]])","v":0}]
[null,null,{"$f":"SUM(Tabella1[[#This Row],[Colonna1]:[DNC25]])","v":0}]
[null,null,{"$f":"SUM(Tabella1[[#This Row],[Colonna1]:[DNC25]])","v":0}]
[null,null,{"$f":"SUM(Tabella1[[#This Row],[Colonna1]:[DNC25]])","v":0}]
[null,null,{"$f":"SUM(Tabella1[[#This Row],[Colonna1]:[DNC25]])","v":0}]
[null,null,{"$f":"SUM(Tabella1[[#This Row],[Colonna1]:[DNC25]])","v":0}]
[null,null,{"$f":"SUM(Tabella1[[#This Row],[Colonna1]:[DNC25]])","v":0}]
[null,null,{"$f":"SUM(Tabella1[[#This Row],[Colonna1]:[DNC25]])","v":0}]
[null,null,{"$f":"SUM(Tabella1[[#This Row],[Colonna1]:[DNC25]])","v":0}]
[null,null,{"$f":"SUM(Tabella1[[#This Row],[Colonna1]:[DNC25]])","v":0}]
[null,null,{"$f":"SUM(Tabella1[[#This Row],[Colonna1]:[DNC25]])","v":0}]
[null,null,{"$f":"SUM(Tabella1[[#This Row],[Colonna1]:[DNC25]])","v":0}]
[null,null,{"$f":"SUM(Tabella1[[#This Row],[Colonna1]:[DNC25]])","v":0}]
[null,null,{"$f":"SUM(Tabella1[[#This Row],[Colonna1]:[DNC25]])","v":0}]
[null,null,{"$f":"SUM(Tabella1[[#This Row],[Colonna1]:[DNC25]])","v":0}]
[null,null,{"$f":"SUM(Tabella1[[#This Row],[Colonna1]:[DNC25]])","v":0}]